fUST/lending_fUST_20240530
["ID","MTS","AMOUNT","RATE_DAILY","PERIOD"]
[328232869,1717079460694,-1021.73440065,0.00068493,120]
[328232870,1717079460704,-1021.73440065,0.00068493,120]
[328232871,1717079460713,-1021.73440065,0.00068493,120]
[328232872,1717079460723,-1021.73440065,0.00068493,120]
[328232873,1717079460734,-1021.73440065,0.00068493,120]
[328232874,1717079460745,-1021.73440065,0.00068493,120]
[328232875,1717079460754,-1021.73440065,0.00068493,120]
[328232876,1717079460763,-993.35288953,0.00068493,120]
[328232877,1717079460772,-993.35288953,0.00068493,120]
[328232878,1717079460783,-993.35288953,0.00068493,120]
[328232879,1717079460792,-993.35288953,0.00068493,120]
[328232880,1717079460801,-993.35288953,0.00068493,120]
[328232881,1717079460810,-993.35288953,0.00068493,120]
[328232882,1717079460820,-993.35288953,0.00068493,120]
[328232883,1717079460829,-993.35288953,0.00068493,120]
[328232884,1717079460838,-993.35288953,0.00068493,120]
[328232885,1717079460849,-993.35288953,0.00068493,120]
[328232886,1717079460864,-993.35288953,0.00068493,120]
[328232887,1717079460875,-993.35288953,0.00068493,120]
[328232888,1717079460884,-993.35288953,0.00068493,120]
[328232889,1717079460893,-993.35288953,0.00068493,120]
[328232890,1717079460902,-993.35288953,0.00068493,120]
[328232891,1717079460911,-993.35288953,0.00068493,120]
[328232892,1717079460920,-993.35288953,0.00068493,120]
[328232893,1717079460932,-993.35288953,0.00068493,120]
[328232894,1717079460941,-500.0,0.00068493,120]
[328232895,1717079460951,-544.6829452,0.00068493,120]
[328232896,1717079460960,-500.0,0.00068493,120]
[328232897,1717079460969,-500.0,0.00068493,120]
[328232898,1717079460978,-500.0,0.00068493,120]
[328232899,1717079460988,-500.0,0.00068493,120]
[328232900,1717079460997,-500.0,0.00068493,120]
[328232901,1717079461006,-544.24184858,0.00068493,120]
[328232902,1717079461015,-185.0,0.000685,120]
[328232903,1717079461025,-151.0,0.00068658,120]
[328232904,1717079461037,-185.0,0.00069,120]
[328232905,1717079461045,-185.0,0.00069,120]
[328232906,1717079461054,-604.8294722,0.00069,120]
[328232907,1717079461063,-3000.0,0.00069,120]
[328232908,1717079461072,-3000.0,0.0006901,120]
[328232909,1717079461081,-3000.0,0.0006902,120]
[328232910,1717079461091,-3000.0,0.0006903,120]
[328232911,1717079461100,-5218.421694,0.0006904,120]
[328232912,1717079461109,-151.0,0.00069315,120]
[328232913,1717079461118,-1000.0,0.00069384,120]
[328232914,1717079461128,-185.0,0.000695,120]
[328232915,1717079461137,-185.0,0.000695,120]
[328232916,1717079461146,-151.0,0.00069973,120]
[328232917,1717079461155,-1021.73440065,0.00069999,120]
[328232918,1717079461164,-1021.73440065,0.00069999,120]
[328232919,1717079461173,-1021.73440065,0.00069999,120]
[328232920,1717079461183,-1021.73440065,0.00069999,120]
[328232921,1717079461192,-1021.73440065,0.00069999,120]
[328232922,1717079461201,-1021.73440065,0.00069999,120]
[328232923,1717079461211,-1021.73440065,0.00069999,120]
[328232924,1717079461220,-1021.73440065,0.00069999,120]
[328232925,1717079461229,-1021.73440065,0.00069999,120]
[328232926,1717079461239,-1021.73440065,0.00069999,120]
[328232927,1717079461248,-1021.73440065,0.00069999,120]
[328232928,1717079461259,-1021.73440065,0.00069999,120]
[328232929,1717079461268,-1021.73440065,0.00069999,120]
[328232930,1717079461278,-1021.73440065,0.00069999,120]
[328232931,1717079461289,-1021.73440065,0.00069999,120]
[328232932,1717079461298,-1021.73440065,0.00069999,120]
[328232933,1717079461306,-1021.73440065,0.00069999,120]
[328232934,1717079461315,-1021.73440065,0.00069999,120]
[328232935,1717079461325,-1021.73440065,0.00069999,120]
[328232936,1717079461334,-1021.73440065,0.00069999,120]
[328232937,1717079461343,-1021.73440065,0.00069999,120]
[328232938,1717079461352,-1021.73440065,0.00069999,120]
[328232939,1717079461362,-1021.73440065,0.00069999,120]
[328232940,1717079461371,-1021.73440065,0.00069999,120]
[328232941,1717079461380,-1021.73440065,0.00069999,120]
[328232942,1717079461390,-1094.71542928,0.00069999,120]
[328232943,1717079461399,-1094.71542928,0.00069999,120]
[328232944,1717079461408,-1094.71542928,0.00069999,120]
[328232945,1717079461418,-1094.71542928,0.00069999,120]
[328232946,1717079461427,-1094.71542928,0.00069999,120]
[328232947,1717079461437,-1094.71542928,0.00069999,120]
[328232948,1717079461446,-1094.71542928,0.00069999,120]
[328232949,1717079461456,-5000.0,0.0007,70]
[328232950,1717079461465,-2000.0,0.0007,36]
[328232951,1717079461475,-8795.7208978,0.0007,120]
[328232952,1717079461484,-1000.0,0.0007,120]
[328232953,1717079461493,-185.0,0.0007,120]
[328232954,1717079461503,-185.0,0.0007,120]
[328232955,1717079461512,-185.0,0.0007,120]
[328232956,1717079461522,-185.0,0.0007,120]
[328232957,1717079461533,-185.0,0.0007,120]
[328232958,1717079461543,-859.76864034,0.0007,2]
[328232959,1717079461553,-206036.7247784,0.0007,120]
[328232960,1717079461563,-100000.000098,0.0007,120]
[328232961,1717079461572,-3998.22790488,0.0007,120]
[328232962,1717079461582,-5228.59800733,0.0007,120]
[328232963,1717079461591,-1000000.0,0.0007,120]
[328232964,1717079461600,-151.0,0.0007063,120]
[328232965,1717079461609,-5000.0,0.000709,120]
[328232966,1717079461618,-151.0,0.00071288,120]
[328232967,1717079461628,-573.413161,0.00071795,120]
[328232968,1717079461638,-151.0,0.00071945,120]
[328232969,1717079461647,-203.19,0.00072,120]
[328232970,1717079461657,-481.78,0.00072,120]
[328232971,1717079461667,-151.0,0.00072603,120]
[328232972,1717079461676,-2000.0,0.00073,120]
[328232973,1717079461685,-151.0,0.0007326,120]
[328232974,1717079461695,-80623.0,0.0007344,120]
[328232975,1717079461705,-151.0,0.00073918,120]
[328232976,1717079461714,-1206.91,0.00073936,120]
[328232977,1717079461723,-1197.71,0.00073936,120]
[328232978,1717079461733,-1238.08,0.00073936,120]
[328232979,1717079461742,-1097.59,0.00073936,120]
[328232980,1717079461752,-1117.47,0.00073936,120]
[328232981,1717079461762,-1133.36,0.00073936,120]
[328232982,1717079461771,-1202.47,0.00073936,120]
[328232983,1717079461781,-1257.21,0.00073936,120]
[328232984,1717079461793,-1067.27,0.00073936,120]
[328232985,1717079461803,-1141.68,0.00073936,120]
[328232986,1717079461812,-1139.01,0.00073936,120]
[328232987,1717079461823,-1068.43,0.00073936,120]
[328232988,1717079461834,-1199.78,0.00073936,120]
[328232989,1717079461844,-1120.93,0.00073936,120]
[328232990,1717079461855,-1223.23,0.00073936,120]
[328232991,1717079461867,-1136.58,0.00073936,120]
[328232992,1717079461953,-1105.09,0.00073936,120]
[328232993,1717079461965,-1145.51,0.00073936,120]
[328232994,1717079461974,-1210.6,0.00073936,120]
[328232995,1717079461984,-381.2589407,0.00073936,120]
[328232996,1717079461993,-3958.71,0.00073936,120]
[328232997,1717079462003,-3859.06,0.00073936,120]
[328232998,1717079462013,-3948.71,0.00073936,120]
[328232999,1717079462023,-3861.78,0.00073936,120]
[328233000,1717079462034,-3225.0681516,0.00073936,120]
[328233001,1717079462044,-40310.42903996,0.00074,120]
[328233002,1717079462054,-151.0,0.00074575,120]
[328233003,1717079462063,-91014.7302854,0.0007458,120]
[328233004,1717079462073,-5000.0,0.000749,120]
[328233005,1717079462082,-165.89977803,0.00075,10]
[328233006,1717079462092,-3998.22790488,0.00075,120]
[328233007,1717079462101,-151.0,0.00075233,120]
[328233008,1717079462112,-9999.999999,0.00075444,120]
[328233009,1717079462121,-151.0,0.0007589,120]
[328233010,1717079462133,-455.04475961,0.000765,120]
[328233011,1717079462142,-151.0,0.00076548,120]
[328233012,1717079462152,-200000.0,0.000769,120]
[328233013,1717079462162,-1000.0,0.00076951,120]
[328233014,1717079462172,-151.0,0.00077205,120]
[328233015,1717079462182,-151.0,0.00077397,120]
[328233016,1717079462192,-573.413161,0.00077722,120]
[328233017,1717079462201,-151.0,0.00077863,120]
[328233018,1717079462210,-47199.74361242,0.00078,60]
[328233019,1717079462219,-151.0,0.00078521,120]
[328233020,1717079462229,-5000.0,0.000789,120]
[328233021,1717079462238,-151.0,0.00079178,120]
[328233022,1717079462248,-151.0,0.00079836,120]
[328233023,1717079462257,-500.0,0.0008,120]
[328233024,1717079462267,-662.8613081,0.0008,50]
[328233025,1717079462276,-859.76864034,0.0008,2]
[328233026,1717079462288,-7905.37417686,0.0008,120]
[328233027,1717079462297,-45543.45911174,0.0008,120]
[328233028,1717079462306,-3998.22790488,0.0008,120]
[328233029,1717079462315,-4058.16035626,0.0008,2]
[328233030,1717079462325,-300.0,0.0008,105]
[328233031,1717079462334,-1913.157966,0.0008,120]
[328233032,1717079462343,-151.0,0.00080493,120]
[328233033,1717079462353,-151.0,0.00081151,120]
[328233034,1717079462362,-300.0,0.000815,106]
[328233035,1717079462372,-151.0,0.00081808,120]
[328233036,1717079462382,-500.0,0.00082191,120]
[328233037,1717079462392,-500.0,0.00082191,120]
[328233038,1717079462400,-500.0,0.00082191,120]
[328233039,1717079462411,-500.0,0.00082191,120]
[328233040,1717079462420,-500.0,0.00082191,120]
[328233041,1717079462429,-500.0,0.00082191,120]
[328233042,1717079462439,-500.0,0.00082191,120]
[328233043,1717079462448,-500.0,0.00082191,120]
[328233044,1717079462458,-630.72945886,0.00082191,120]
[328233045,1717079462467,-5218.1,0.00082191,120]
[328233046,1717079462477,-151.0,0.00082466,120]
[328233047,1717079462486,-300.0,0.00083,107]
[328233048,1717079462495,-151.0,0.00083123,120]
[328233049,1717079462505,-5000.0,0.000835,120]
[328233050,1717079462516,-573.413161,0.00083648,120]
[328233051,1717079462525,-151.0,0.00083781,120]
[328233052,1717079462536,-151.0,0.00084438,120]
[328233053,1717079462545,-300.0,0.000845,108]
[328233054,1717079462555,-3998.22790488,0.00085,120]
[328233055,1717079462564,-151.0,0.00085096,120]
[328233056,1717079462574,-151.0,0.00085753,120]
[328233057,1717079462583,-300.0,0.00086,109]
[328233058,1717079462593,-151.0,0.00086411,120]
[328233059,1717079462603,-151.0,0.00087068,120]
[328233060,1717079462612,-1000.0,0.00087107,120]
[328233061,1717079462622,-181.10944528,0.00087151,4]
[328233062,1717079462631,-500.0,0.000875,110]
[328233063,1717079462640,-169.811481,0.00087671,2]
[328233064,1717079462650,-151.0,0.00087726,120]
[328233065,1717079462660,-151.0,0.00088384,120]
[328233066,1717079462669,-1000.0,0.00088499,90]
[328233067,1717079462679,-1074.0,0.000886,120]
[328233068,1717079462688,-5000.0,0.000889,120]
[328233069,1717079462698,-151.0,0.00089041,120]
[328233070,1717079462708,-573.413161,0.00089575,120]
[328233071,1717079462718,-304.0,0.00089699,120]
[328233072,1717079462727,-500.0,0.0009,120]
[328233073,1717079462737,-8000.0,0.0009,120]
[328233074,1717079462746,-509.45,0.0009,90]
[328233075,1717079462755,-859.76864034,0.0009,2]
[328233076,1717079462765,-3998.22790488,0.0009,120]
[328233077,1717079462774,-151.0,0.00091096,120]
[328233078,1717079462785,-5000.0,0.000929,120]
[328233079,1717079462794,-2009.91076424,0.00094403,28]
[328233080,1717079462804,-6058.67944407,0.0009488,60]
[328233081,1717079462813,-3998.22790488,0.00095,120]
[328233082,1717079462823,-326.95052738,0.000955,120]
[328233083,1717079462832,-573.413161,0.00095501,120]
[328233084,1717079462841,-5000.0,0.00097,120]
[328233085,1717079462852,-2813.30866859,0.000975,30]
[328233086,1717079462863,-1000.0,0.00099999,120]
[328233087,1717079462873,-500.0,0.001,120]
[328233088,1717079462881,-1117.26204669,0.001,120]
[328233089,1717079462891,-859.76864034,0.001,2]
[328233090,1717079462901,-1999.999999,0.001,120]
[328233091,1717079462911,-1998.29610388,0.001,120]
[328233092,1717079462920,-44355.37414256,0.001,120]
[328233093,1717079462929,-151.0,0.001,120]
[328233094,1717079462941,-5238.973,0.001,120]
[328233095,1717079462951,-5238.973,0.001,120]
[328233096,1717079462960,-5238.973,0.001,120]
[328233097,1717079462969,-5238.973,0.001,120]
[328233098,1717079462979,-5238.973,0.001,120]
[328233099,1717079462988,-573.413161,0.00101428,120]
[328233100,1717079462997,-151.0,0.00104795,120]
[328233101,1717079463007,-573.413161,0.00107354,120]
[328233102,1717079463016,-3690.42,0.0010853,120]
[328233103,1717079463025,-3548.26,0.0010853,120]
[328233104,1717079463036,-3581.33,0.0010853,120]
[328233105,1717079463045,-3608.61,0.0010853,120]
[328233106,1717079463053,-3535.77,0.0010853,120]
[328233107,1717079463062,-3545.86,0.0010853,120]
[328233108,1717079463071,-3717.64,0.0010853,120]
[328233109,1717079463080,-3052.1022274,0.0010853,120]
[328233110,1717079463090,-4999.999999,0.001089,120]
[328233111,1717079463100,-5218.1,0.00109589,120]
[328233112,1717079463109,-384.00854067,0.0011,120]
[328233113,1717079463119,-168.962461,0.00110502,2]
[328233114,1717079463128,-573.413161,0.00113281,120]
[328233115,1717079463138,-151.0,0.00118493,120]
[328233116,1717079463148,-573.413161,0.00119207,120]
[328233117,1717079463157,-549.312,0.0012,60]
[328233118,1717079463168,-2009.91076424,0.00120778,28]
[328233119,1717079463178,-5000.0,0.00125,120]
[328233120,1717079463187,-1998.29610388,0.00125,120]
[328233121,1717079463197,-573.413161,0.00125133,120]
[328233122,1717079463206,-573.413161,0.0013106,120]
[328233123,1717079463216,-151.0,0.00132192,120]
[328233124,1717079463225,-153.0,0.00135205,120]
[328233125,1717079463234,-306.0,0.00136438,120]
[328233126,1717079463244,-5218.1,0.00136986,120]
[328233127,1717079463255,-573.413161,0.00136986,120]
[328233128,1717079463264,-20112.01942674,0.00138,120]
[328233129,1717079463274,-151.0,0.0014589,120]
[328233130,1717079463285,-2009.91076424,0.00147152,28]
[328233131,1717079463294,-1877.9180741,0.0014866,120]
[328233132,1717079463303,-1998.83335984,0.0015,120]
[328233133,1717079463313,-198560.56767624,0.0015,120]
[328233134,1717079463323,-463.84376417,0.0015,120]
[328233135,1717079463332,-165.12678664,0.0015,120]
[328233136,1717079463342,-1000.0,0.00150684,7]
[328233137,1717079463352,-1000.0,0.00150684,7]
[328233138,1717079463362,-1000.0,0.00150684,7]
[328233139,1717079463372,-1000.0,0.00150684,7]
[328233140,1717079463382,-1000.0,0.00150684,7]
[328233141,1717079463392,-1000.0,0.00150684,7]
[328233142,1717079463402,-1000.0,0.00150684,7]
[328233143,1717079463412,-1000.0,0.00150684,7]
[328233144,1717079463421,-1000.0,0.00150684,7]
[328233145,1717079463432,-1000.0,0.00150684,7]
[328233146,1717079463441,-1000.0,0.00150684,7]
[328233147,1717079463452,-1000.0,0.00150684,7]
[328233148,1717079463462,-1000.0,0.00150684,7]
[328233149,1717079463472,-1000.0,0.00150684,7]
[328233150,1717079463481,-1000.0,0.00150684,7]
[328233151,1717079463490,-1000.0,0.00150684,7]
[328233152,1717079463500,-967.25833989,0.00150684,7]
[328233153,1717079463510,-169.811481,0.00156164,2]
[328233154,1717079463519,-168.962461,0.00156164,2]
[328233155,1717079463529,-5000.0,0.00159,120]
[328233156,1717079463539,-151.0,0.00159589,120]
[328233157,1717079463548,-10124.82601086,0.00164,120]
[328233158,1717079463557,-5218.1,0.00164383,120]
[328233159,1717079463567,-151.0,0.00173288,120]
[328233160,1717079463576,-151.0,0.00186986,120]
[328233161,1717079463586,-85437.97880101,0.0019,30]
[328233162,1717079463595,-314.96356252,0.00191,120]
[328233163,1717079463606,-5218.1,0.0019178,120]
[328233164,1717079463615,-82000.0,0.001988,120]
[328233165,1717079463624,-384.79182961,0.00199999,75]
[328233166,1717079463634,-500.0,0.002,120]
[328233167,1717079463643,-1000.0,0.002,120]
[328233168,1717079463652,-1998.83335984,0.002,120]
[328233169,1717079463726,-200.0,0.002,2]
[328233170,1717079463743,-530773.95498745,0.002,120]
[328233190,1717079908384,-152.14743476,0.00015283,2]
[328233191,1717079908412,-779.28711953,0.00015379,2]
[328233192,1717079908436,-1559.61974797,0.00015383,2]
[328233193,1717079908563,-1423.78374026,0.00019177,2]
[328233194,1717079908586,-11999.20501447,0.0002,2]
[328233195,1717079908613,-291.9275846,0.00021788,2]
[328233196,1717079908639,-291.0,0.00022048,2]
[328233197,1717079908666,-318.98537628,0.00022999,2]
[328233198,1717079908691,-1110.85046966,0.00024998,2]
[328233199,1717079908715,-3440.54199719,0.00025,2]
[328233200,1717079908741,-150.0,0.00025048,2]
[328233201,1717079908764,-1144.17653548,0.000256,2]
[328233202,1717079908786,-7676.6676797,0.0003,2]
[328233203,1717079908813,-336.665,0.00030136,4]
[328233204,1717079908837,-171.4227203,0.00030373,2]
[328233205,1717079908860,-895.02096928,0.00031506,4]
[328233206,1717079908884,-156.88424872,0.00031506,4]
[328233207,1717079908909,-165.19964816,0.00031506,30]
[328233208,1717079908936,-594.61777398,0.00033137,2]
[328233209,1717079908961,-150.97282832,0.00033158,7]
[328233210,1717079908990,-502.47769106,0.00033206,2]
[328233211,1717079909018,-594.61777396,0.00033218,2]
[328233212,1717079909042,-5864.67,0.00033228,3]
[328233213,1717079909069,-4887.22,0.00033228,3]
[328233214,1717079909096,-4072.69,0.00033228,3]
[328233215,1717079909127,-631.05853699,0.00033237,7]
[328233216,1717079909159,-631.05853699,0.00033237,7]
[328233217,1717079909202,-631.05853699,0.00033237,7]
[328233218,1717079909249,-631.05853699,0.00033237,7]
[328233219,1717079909299,-631.05853699,0.00033237,7]
[328233220,1717079909345,-631.05853699,0.00033237,7]
[328233221,1717079909388,-631.05853699,0.00033237,7]
[328233222,1717079909433,-631.05853699,0.00033237,7]
[328233223,1717079909478,-631.05853699,0.00033237,7]
[328233224,1717079909518,-631.05853699,0.00033237,7]
[328233225,1717079909558,-631.05853699,0.00033237,7]
[328233226,1717079909596,-631.05853699,0.00033237,7]
[328233227,1717079909638,-631.05853699,0.00033237,7]
[328233228,1717079909675,-631.05853699,0.00033237,7]
[328233229,1717079909704,-631.05853699,0.00033237,7]
[328233230,1717079909734,-631.05853699,0.00033237,7]
[328233231,1717079909763,-631.05853699,0.00033237,7]
[328233232,1717079909792,-631.05853699,0.00033237,7]
[328233233,1717079909823,-631.05853699,0.00033237,7]
[328233234,1717079909852,-631.05853699,0.00033237,7]
[328233235,1717079909880,-631.05853699,0.00033237,7]
[328233236,1717079909911,-631.05853699,0.00033237,7]
[328233237,1717079909938,-631.05853699,0.00033237,7]
[328233238,1717079909967,-631.05853699,0.00033237,7]
[328233239,1717079910000,-631.05853699,0.00033237,7]
[328233240,1717079910030,-631.05853699,0.00033237,7]
[328233241,1717079910242,-631.05853699,0.00033237,7]
[328233242,1717079910275,-631.05853699,0.00033237,7]
[328233243,1717079910304,-631.05853699,0.00033237,7]
[328233244,1717079910332,-631.05853699,0.00033237,7]
[328233245,1717079910361,-631.05853699,0.00033237,7]
[328233246,1717079910389,-631.05853699,0.00033237,7]
[328233247,1717079910420,-631.05853699,0.00033237,7]
[328233248,1717079910448,-631.05853699,0.00033237,7]
[328233249,1717079910477,-631.05853699,0.00033237,7]
[328233250,1717079910506,-631.05853699,0.00033237,7]
[328233251,1717079910534,-631.05853699,0.00033237,7]
[328233252,1717079910562,-631.05853699,0.00033237,7]
[328233253,1717079910591,-631.05853699,0.00033237,7]
[328233254,1717079910619,-621.70952163,0.00033237,7]
[328233255,1717079910647,-621.70952163,0.00033237,7]
[328233256,1717079910676,-621.70952163,0.00033237,7]
[328233257,1717079910704,-621.70952163,0.00033237,7]
[328233258,1717079910732,-621.70952163,0.00033237,7]
[328233259,1717079910760,-621.70952163,0.00033237,7]
[328233260,1717079910788,-621.70952163,0.00033237,7]
[328233261,1717079910818,-621.70952163,0.00033237,7]
[328233262,1717079910845,-621.70952163,0.00033237,7]
[328233263,1717079910873,-621.70952163,0.00033237,7]
[328233264,1717079910900,-621.70952163,0.00033237,7]
[328233265,1717079910930,-621.70952163,0.00033237,7]
[328233266,1717079910959,-621.70952163,0.00033237,7]
[328233267,1717079910992,-621.70952163,0.00033237,7]
[328233268,1717079911022,-621.70952163,0.00033237,7]
[328233269,1717079911056,-621.70952163,0.00033237,7]
[328233270,1717079911088,-621.70952163,0.00033237,7]
[328233271,1717079911115,-621.70952163,0.00033237,7]
[328233272,1717079911145,-621.70952163,0.00033237,7]
[328233273,1717079911176,-580.26222019,0.00033237,7]
[328233274,1717079911206,-580.26222019,0.00033237,7]
[328233275,1717079911235,-580.26222019,0.00033237,7]
[328233276,1717079911263,-580.26222019,0.00033237,7]
[328233277,1717079911291,-580.26222019,0.00033237,7]
[328233278,1717079911319,-580.26222019,0.00033237,7]
[328233279,1717079911348,-1428.7016241,0.00033238,7]
[328233280,1717079911371,-594.61777396,0.00033299,2]
[328233281,1717079911395,-228.0,0.00033399,2]
[328233282,1717079911424,-150.97282832,0.00033868,7]
[328233283,1717079930536,-711520.99696305,0.00033238,120]
[328233327,1717080579408,-153.26674155,0.00016421,2]
[328233328,1717080579434,-24900.0,0.00016521,2]
[328233329,1717080579459,-152.0,0.0003,2]
[328233330,1717080579485,-973.27594757,0.00031138,2]
[328233331,1717080579510,-3036.0668806,0.00031656,2]
[328233372,1717080632605,-586.23740997,0.00033038,2]
[328233375,1717080632617,-7369.67167227,0.00033038,2]
[328233377,1717080632626,-304.0,0.00033138,2]
[328233379,1717080632636,-14590.46544921,0.00033138,2]
[328233381,1717080632645,-189.87567617,0.00033138,2]
[328233383,1717080632654,-364.55714172,0.00033238,4]
[328233385,1717080632666,-154.93802479,0.00033238,7]
[328233387,1717080632676,-234.81431649,0.00033238,4]
[328233389,1717080632685,-335.47895643,0.00033238,2]
[328233391,1717080632694,-159.06983623,0.00033239,7]
[328233393,1717080632704,-150.97282832,0.00033532,7]
[328233395,1717080632713,-150.97282832,0.00033648,7]
[328233397,1717080632722,-150.97282832,0.00033682,7]
[328233399,1717080632732,-159.06983623,0.00033699,7]
[328233401,1717080632741,-150.97282832,0.00033845,7]
[328233403,1717080632750,-150.97282832,0.00034122,7]
[328233405,1717080632759,-159.06983624,0.00034241,7]
[328233407,1717080632768,-150.97282832,0.00034766,7]
[328233409,1717080632778,-273.37336231,0.00034813,2]
[328233411,1717080632787,-150.97282832,0.0003486,7]
[328233413,1717080632796,-150.97282833,0.00034993,7]
[328233415,1717080632806,-973.27594757,0.00036138,2]
[328233417,1717080632818,-2207.19894439,0.00038,120]
[328233419,1717080632827,-153.0,0.00039883,2]
[328233421,1717080632836,-204.8154073,0.00039883,2]
[328233423,1717080632846,-178.73233887,0.00039894,2]
[328233425,1717080632854,-500.0,0.00039994,31]
[328233427,1717080632864,-500.0,0.00039994,31]
[328233429,1717080632873,-500.0,0.00039994,31]
[328233431,1717080632882,-500.0,0.00039994,31]
[328233433,1717080632891,-500.0,0.00039994,31]
[328233435,1717080632900,-500.0,0.00039994,31]
[328233437,1717080632909,-500.0,0.00039994,31]
[328233439,1717080632918,-500.0,0.00039994,31]
[328233441,1717080632927,-500.0,0.00039994,31]
[328233443,1717080632937,-500.0,0.00039994,31]
[328233445,1717080632946,-500.0,0.00039994,31]
[328233447,1717080632956,-500.0,0.00039994,31]
[328233449,1717080632965,-500.0,0.00039994,31]
[328233451,1717080632974,-500.0,0.00039994,31]
[328233453,1717080632983,-500.0,0.00039994,31]
[328233455,1717080632993,-500.0,0.00039994,31]
[328233457,1717080633002,-240.36156714,0.00039994,31]
[328233459,1717080633011,-500.0,0.00039994,31]
[328233461,1717080633020,-500.0,0.00039994,31]
[328233463,1717080633029,-500.0,0.00039994,31]
[328233465,1717080633038,-500.0,0.00039994,31]
[328233467,1717080633047,-500.0,0.00039994,31]
[328233469,1717080633056,-500.0,0.00039994,31]
[328233471,1717080633068,-500.0,0.00039994,31]
[328233473,1717080633077,-500.0,0.00039994,31]
[328233475,1717080633085,-500.0,0.00039994,31]
[328233477,1717080633095,-500.0,0.00039994,31]
[328233479,1717080633105,-500.0,0.00039994,31]
[328233481,1717080633114,-500.0,0.00039994,31]
[328233483,1717080633123,-500.0,0.00039994,31]
[328233485,1717080633132,-500.0,0.00039994,31]
[328233487,1717080633141,-4211.47799838,0.00039998,2]
[328233489,1717080633154,-355.28152847,0.00039998,2]
[328233569,1717080638724,-500.0,0.00039997,31]
[328233570,1717080638733,-500.0,0.00039997,31]
[328233573,1717080638743,-368.36685768,0.00039997,31]
[328233574,1717080638755,-53.74161246,0.00039997,31]
[328233575,1717080638765,-359.72888754,0.00039997,31]
[328233576,1717080638779,-140.27111246,0.00039997,31]
[328233577,1717080638789,-500.0,0.00039997,31]
[328233578,1717080638799,-1044.73056685,0.00039998,2]
[328233579,1717080638811,-7068.70512282,0.00039998,2]
[328233580,1717080638824,-6724.3172554,0.00039998,2]
[328233631,1717080642958,-26571.48773094,0.00039998,2]
[328233688,1717080644215,-10495.97143447,0.00039998,2]
[328233690,1717080644228,-449.06389234,0.00039999,4]
[328233692,1717080644237,-154.54967419,0.0004,10]
[328233695,1717080644252,-349.61470438,0.0004,10]
[328233697,1717080644262,-973.27594757,0.00041138,2]
[328233699,1717080644273,-349.99167644,0.00044999,4]
[328233700,1717080644284,-955.46671359,0.00045,120]
[328233702,1717080644293,-4216.38153666,0.0005,60]
[328233704,1717080644306,-154.93802479,0.0005,30]
[328233707,1717080644327,-9526.84377959,0.0006,120]
[328233709,1717080644338,-160.0,0.0006,60]
[328233712,1717080644348,-154.92253873,0.00064929,2]
[328233713,1717080644357,-475.1852878,0.0006493,7]
[328233715,1717080644367,-154.92253873,0.00064931,2]
[328233717,1717080644377,-6161.80833211,0.00064941,120]
[328233719,1717080644386,-281.21107988,0.00064941,4]
[328233722,1717080644396,-1894.80459107,0.00064942,7]
[328233723,1717080644407,-154.92253873,0.00065751,7]
[328233725,1717080644417,-154.92253873,0.00065751,7]
[328233727,1717080644426,-151.5,0.00065753,120]
[328233729,1717080644435,-2828.25,0.00066856,3]
[328233731,1717080644445,-2356.88,0.00066856,3]
[328233733,1717080644455,-3393.91,0.00066858,3]
[328233735,1717080644465,-6971.60817112,0.00066866,15]
[328233737,1717080644474,-22192.72695311,0.00066866,20]
[328233739,1717080644485,-4300.29032566,0.00069996,7]
[328233741,1717080644495,-6049.48139345,0.00069997,7]
[328233743,1717080644504,-209.6658738,0.00069998,12]
[328233759,1717080644656,-2443.32791351,0.00069998,30]